[Event "NK ABC Kwalificatie 2"]
[Site "Zoetermeer, Netherlands"]
[Date "2025.01.04"]
[Round "2.6"]
[White "Zhu, Chenwu"]
[Black "Heus, Daan"]
[Result "1-0"]
[TimeControl "55+10"]
[WhiteFideId "8733846"]
[BlackFideId "8814652"]
[WhiteElo "2177"]
[BlackElo "1891"]

1. e4 {[%clk 00:55:15]} {[%emt 00:00:04]} e5 {[%clk 00:55:15]} {[%emt
00:00:06]} 2. Nf3 {[%clk 00:55:21]} {[%emt 00:00:04]} Nc6 {[%clk 00:55:20]}
{[%emt 00:00:04]} 3. Bb5 {[%clk 00:55:24]} {[%emt 00:00:08]} a6 {[%clk
00:55:18]} {[%emt 00:00:12]} 4. Ba4 {[%clk 00:55:29]} {[%emt 00:00:05]} Nf6
{[%clk 00:55:18]} {[%emt 00:00:10]} 5. O-O {[%clk 00:55:31]} {[%emt 00:00:07]}
b5 {[%clk 00:54:45]} {[%emt 00:00:43]} 6. Bb3 {[%clk 00:55:36]} {[%emt
00:00:05]} Be7 {[%clk 00:54:47]} {[%emt 00:00:08]} 7. Re1 {[%clk 00:55:16]}
{[%emt 00:00:30]} d6 {[%clk 00:54:44]} {[%emt 00:00:14]} 8. c3 {[%clk
00:55:18]} {[%emt 00:00:08]} O-O {[%clk 00:54:40]} {[%emt 00:00:14]} 9. h3
{[%clk 00:54:57]} {[%emt 00:00:31]} Bb7 {[%clk 00:54:25]} {[%emt 00:00:25]} 10.
d4 {[%clk 00:53:18]} {[%emt 00:01:48]} Re8 {[%clk 00:54:18]} {[%emt 00:00:18]}
11. a4 {[%clk 00:50:56]} {[%emt 00:02:32]} Bf8 {[%clk 00:53:13]} {[%emt
00:01:15]} 12. Nbd2 {[%clk 00:47:58]} {[%emt 00:03:08]} h6 {[%clk 00:52:41]}
{[%emt 00:00:42]} 13. d5 {[%clk 00:47:06]} {[%emt 00:01:01]} Nb8 {[%clk
00:49:10]} {[%emt 00:03:41]} 14. Nf1 {[%clk 00:44:00]} {[%emt 00:03:16]} Nbd7
{[%clk 00:46:47]} {[%emt 00:02:33]} 15. Ng3 {[%clk 00:43:14]} {[%emt 00:00:56]}
Nc5 {[%clk 00:41:47]} {[%emt 00:05:10]} 16. Bc2 {[%clk 00:42:38]} {[%emt
00:00:46]} g6 {[%clk 00:41:03]} {[%emt 00:00:55]} 17. a5 {[%clk 00:38:34]}
{[%emt 00:04:14]} c6 {[%clk 00:36:56]} {[%emt 00:04:17]} 18. b4 {[%clk
00:37:46]} {[%emt 00:00:58]} Ncd7 {[%clk 00:34:32]} {[%emt 00:02:34]} 19. dxc6
{[%clk 00:37:15]} {[%emt 00:00:41]} Bxc6 {[%clk 00:34:35]} {[%emt 00:00:07]} 20.
Bb3 {[%clk 00:36:03]} {[%emt 00:01:22]} Qe7 {[%clk 00:26:28]} {[%emt 00:08:17]}
21. Nh4 {[%clk 00:27:56]} {[%emt 00:08:16]} Nxe4 {[%clk 00:18:07]} {[%emt
00:08:31]} 22. Nxg6 {[%clk 00:22:10]} {[%emt 00:05:57]} Qf6 {[%clk 00:17:37]}
{[%emt 00:00:40]} 23. Rxe4 {[%clk 00:18:20]} {[%emt 00:04:00]} Bxe4 {[%clk
00:16:28]} {[%emt 00:01:19]} 24. Nxf8 {[%clk 00:17:47]} {[%emt 00:00:43]} Bc6
{[%clk 00:12:12]} {[%emt 00:04:26]} 25. Nxd7 {[%clk 00:16:52]} {[%emt
00:01:05]} Bxd7 {[%clk 00:12:21]} {[%emt 00:00:02]} 26. Ne4 {[%clk 00:15:43]}
{[%emt 00:01:19]} Qg7 {[%clk 00:10:57]} {[%emt 00:01:34]} 27. Qh5 {[%clk
00:14:07]} {[%emt 00:01:45]} 1-0

[Event "NK ABC Kwalificatie 2"]
[Site "Zoetermeer, Netherlands"]
[Date "2025.01.04"]
[Round "2.7"]
[White "Wang, Yicheng"]
[Black "Ten Dam, Bram"]
[Result "1/2-1/2"]
[TimeControl "55+10"]
[WhiteFideId "9007757"]
[BlackFideId "8975340"]
[WhiteElo "1768"]
[BlackElo "2013"]

1. e4 {[%clk 00:55:17]} {[%emt 00:00:03]} c6 {[%clk 00:55:07]} {[%emt
00:00:13]} 2. d4 {[%clk 00:55:16]} {[%emt 00:00:10]} d5 {[%clk 00:55:08]}
{[%emt 00:00:08]} 3. exd5 {[%clk 00:55:19]} {[%emt 00:00:07]} cxd5 {[%clk
00:55:10]} {[%emt 00:00:08]} 4. Nf3 {[%clk 00:55:06]} {[%emt 00:00:23]} Nf6
{[%clk 00:54:46]} {[%emt 00:00:35]} 5. Bf4 {[%clk 00:55:01]} {[%emt 00:00:15]}
e6 {[%clk 00:53:29]} {[%emt 00:01:27]} 6. Bd3 {[%clk 00:53:34]} {[%emt
00:01:37]} Bd6 {[%clk 00:52:34]} {[%emt 00:01:04]} 7. Bg3 {[%clk 00:52:39]}
{[%emt 00:01:05]} Nc6 {[%clk 00:51:39]} {[%emt 00:01:05]} 8. c3 {[%clk
00:51:57]} {[%emt 00:00:53]} O-O {[%clk 00:47:49]} {[%emt 00:03:59]} 9. Nbd2
{[%clk 00:49:09]} {[%emt 00:02:59]} Re8 {[%clk 00:46:11]} {[%emt 00:01:47]} 10.
O-O {[%clk 00:48:53]} {[%emt 00:00:26]} Bxg3 {[%clk 00:44:27]} {[%emt
00:01:54]} 11. fxg3 {[%clk 00:47:45]} {[%emt 00:01:18]} h6 {[%clk 00:42:17]}
{[%emt 00:02:19]} 12. Qc2 {[%clk 00:43:14]} {[%emt 00:04:43]} Bd7 {[%clk
00:35:25]} {[%emt 00:07:02]} 13. Nb3 {[%clk 00:39:47]} {[%emt 00:03:37]} Rc8
{[%clk 00:30:13]} {[%emt 00:05:21]} 14. Qd2 {[%clk 00:38:41]} {[%emt 00:01:17]}
e5 {[%clk 00:24:19]} {[%emt 00:06:04]} 15. dxe5 {[%clk 00:36:19]} {[%emt
00:02:32]} Nxe5 {[%clk 00:24:15]} {[%emt 00:00:13]} 16. Nxe5 {[%clk 00:34:50]}
{[%emt 00:01:41]} Rxe5 {[%clk 00:24:07]} {[%emt 00:00:16]} 17. Rae1 {[%clk
00:30:38]} {[%emt 00:04:23]} Qb6+ {[%clk 00:19:33]} {[%emt 00:04:43]} 18. Qf2
{[%clk 00:27:36]} {[%emt 00:03:14]} Qxf2+ {[%clk 00:18:29]} {[%emt 00:01:14]}
19. Kxf2 {[%clk 00:27:33]} {[%emt 00:00:13]} Rce8 {[%clk 00:17:10]} {[%emt
00:01:27]} 20. Rxe5 {[%clk 00:25:16]} {[%emt 00:02:29]} Rxe5 {[%clk 00:16:48]}
{[%emt 00:00:32]} 21. h3 {[%clk 00:24:14]} {[%emt 00:01:11]} Bf5 {[%clk
00:14:09]} {[%emt 00:02:49]} 22. Bxf5 {[%clk 00:23:33]} {[%emt 00:00:51]} Rxf5+
{[%clk 00:14:14]} {[%emt 00:00:06]} 23. Ke2 {[%clk 00:22:01]} {[%emt 00:01:41]}
Rg5 {[%clk 00:13:02]} {[%emt 00:01:22]} 24. g4 {[%clk 00:20:52]} {[%emt
00:01:20]} h5 {[%clk 00:12:51]} {[%emt 00:00:21]} 25. Rf5 {[%clk 00:18:44]}
{[%emt 00:02:18]} Rg6 {[%clk 00:11:20]} {[%emt 00:01:40]} 26. Kf3 {[%clk
00:18:20]} {[%emt 00:00:35]} hxg4+ {[%clk 00:10:39]} {[%emt 00:00:51]} 27. hxg4
{[%clk 00:18:15]} {[%emt 00:00:15]} Nxg4 {[%clk 00:10:34]} {[%emt 00:00:15]} 28.
Rxd5 {[%clk 00:17:56]} {[%emt 00:00:29]} Nh2+ {[%clk 00:09:27]} {[%emt
00:01:17]} 29. Kf2 {[%clk 00:17:13]} {[%emt 00:00:54]} Rf6+ {[%clk 00:08:58]}
{[%emt 00:00:39]} 30. Ke2 {[%clk 00:16:36]} {[%emt 00:00:47]} Ng4 {[%clk
00:08:42]} {[%emt 00:00:26]} 31. Rd2 {[%clk 00:15:11]} {[%emt 00:01:35]} Re6+
{[%clk 00:05:54]} {[%emt 00:02:58]} 32. Kf3 {[%clk 00:14:01]} {[%emt 00:01:19]}
Ne5+ {[%clk 00:05:47]} {[%emt 00:00:17]} 33. Kf2 {[%clk 00:12:58]} {[%emt
00:01:12]} Nc4 {[%clk 00:05:23]} {[%emt 00:00:35]} 34. Rd8+ {[%clk 00:12:25]}
{[%emt 00:00:44]} Kh7 {[%clk 00:55:10]} {[%emt 00:00:36]} 1/2-1/2

[Event "NK ABC Kwalificatie 2"]
[Site "Zoetermeer, Netherlands"]
[Date "2025.01.04"]
[Round "2.8"]
[White "Roersma, Dylan"]
[Black "Gupta, Akul"]
[Result "0-1"]
[TimeControl "55+10"]
[WhiteFideId "8962217"]
[BlackFideId "8925180"]
[WhiteElo "1762"]
[BlackElo "1964"]

1. e4 {[%clk 00:55:15]} {[%emt 00:00:04]} c5 {[%clk 00:55:14]} {[%emt
00:00:07]} 2. Nf3 {[%clk 00:55:16]} {[%emt 00:00:09]} e6 {[%clk 00:55:18]}
{[%emt 00:00:06]} 3. d4 {[%clk 00:54:49]} {[%emt 00:00:37]} cxd4 {[%clk
00:55:22]} {[%emt 00:00:06]} 4. Nxd4 {[%clk 00:54:50]} {[%emt 00:00:08]} Nf6
{[%clk 00:55:26]} {[%emt 00:00:06]} 5. Nc3 {[%clk 00:54:49]} {[%emt 00:00:12]}
Nc6 {[%clk 00:55:25]} {[%emt 00:00:10]} 6. Be3 {[%clk 00:53:34]} {[%emt
00:01:25]} Bb4 {[%clk 00:55:27]} {[%emt 00:00:08]} 7. Nxc6 {[%clk 00:51:43]}
{[%emt 00:02:01]} bxc6 {[%clk 00:55:29]} {[%emt 00:00:09]} 8. Bd3 {[%clk
00:51:08]} {[%emt 00:00:45]} d5 {[%clk 00:55:10]} {[%emt 00:00:28]} 9. exd5
{[%clk 00:49:58]} {[%emt 00:01:21]} exd5 {[%clk 00:54:17]} {[%emt 00:01:03]} 10.
a3 {[%clk 00:42:50]} {[%emt 00:07:18]} Ba5 {[%clk 00:53:16]} {[%emt 00:01:11]}
11. Bd2 {[%clk 00:36:21]} {[%emt 00:06:39]} O-O {[%clk 00:52:55]} {[%emt
00:00:30]} 12. O-O {[%clk 00:35:56]} {[%emt 00:00:36]} Bc7 {[%clk 00:52:06]}
{[%emt 00:00:58]} 13. Bg5 {[%clk 00:33:10]} {[%emt 00:02:58]} Qd6 {[%clk
00:50:17]} {[%emt 00:01:55]} 14. f4 {[%clk 00:30:13]} {[%emt 00:03:10]} Ng4
{[%clk 00:45:38]} {[%emt 00:04:48]} 15. Qd2 {[%clk 00:26:02]} {[%emt 00:04:22]}
Bd7 {[%clk 00:43:01]} {[%emt 00:02:46]} 16. h3 {[%clk 00:22:54]} {[%emt
00:03:20]} Ne3 {[%clk 00:42:18]} {[%emt 00:00:53]} 17. Rf3 {[%clk 00:19:54]}
{[%emt 00:03:10]} Rfe8 {[%clk 00:40:36]} {[%emt 00:01:50]} 18. Kh1 {[%clk
00:16:18]} {[%emt 00:03:48]} Nf5 {[%clk 00:38:40]} {[%emt 00:02:06]} 19. g4
{[%clk 00:14:05]} {[%emt 00:02:24]} Ne7 {[%clk 00:35:49]} {[%emt 00:02:57]} 20.
f5 {[%clk 00:13:42]} {[%emt 00:00:36]} c5 {[%clk 00:34:09]} {[%emt 00:01:50]}
21. Bf4 {[%clk 00:11:41]} {[%emt 00:02:11]} Qb6 {[%clk 00:32:36]} {[%emt
00:01:42]} 22. Bxc7 {[%clk 00:10:41]} {[%emt 00:01:11]} Qxc7 {[%clk 00:32:39]}
{[%emt 00:00:07]} 23. f6 {[%clk 00:08:52]} {[%emt 00:02:00]} d4 {[%clk
00:30:58]} {[%emt 00:01:51]} 24. Qg5 {[%clk 00:03:30]} {[%emt 00:05:33]} Ng6
{[%clk 00:30:59]} {[%emt 00:00:08]} 25. Nd5 {[%clk 00:03:08]} {[%emt 00:00:33]}
Qe5 {[%clk 00:30:35]} {[%emt 00:00:33]} 26. Qxe5 {[%clk 00:01:40]} {[%emt
00:01:40]} Rxe5 {[%clk 00:30:40]} {[%emt 00:00:04]} 27. c4 {[%clk 00:00:32]}
{[%emt 00:01:18]} dxc3 {[%clk 00:30:28]} {[%emt 00:00:22]} 28. Bxg6 {[%clk
00:00:18]} {[%emt 00:00:24]} cxb2 {[%clk 00:29:46]} {[%emt 00:00:53]} 29. Rd1
{[%clk 00:00:15]} {[%emt 00:00:13]} hxg6 {[%clk 00:29:15]} {[%emt 00:00:40]} 30.
Ne7+ {[%clk 00:00:14]} {[%emt 00:00:11]} Rxe7 {[%clk 00:26:50]} {[%emt
00:02:35]} 31. fxe7 {[%clk 00:00:22]} {[%emt 00:00:02]} Bc6 {[%clk 00:26:51]}
{[%emt 00:00:09]} 32. Kg2 {[%clk 00:00:30]} {[%emt 00:00:02]} Re8 {[%clk
00:26:19]} {[%emt 00:00:41]} 33. Rb1 {[%clk 00:00:17]} {[%emt 00:00:24]} Rxe7
{[%clk 00:26:15]} {[%emt 00:00:14]} 34. Rxb2 {[%clk 00:00:26]} {[%emt
00:00:01]} Re3 {[%clk 00:26:18]} {[%emt 00:00:07]} 35. Rbf2 {[%clk 00:00:28]}
{[%emt 00:00:08]} Rxa3 {[%clk 00:26:23]} {[%emt 00:00:05]} 36. Kg3 {[%clk
00:00:31]} {[%emt 00:00:07]} Rxf3+ {[%clk 00:26:27]} {[%emt 00:00:07]} 37. Rxf3
{[%clk 00:00:40]} {[%emt 00:00:01]} Bxf3 {[%clk 00:26:31]} {[%emt 00:00:05]} 38.
Kxf3 {[%clk 00:00:48]} {[%emt 00:00:01]} Kh7 {[%clk 00:26:10]} {[%emt
00:00:31]} 39. Ke4 {[%clk 00:00:50]} {[%emt 00:00:10]} Kh6 {[%clk 00:26:13]}
{[%emt 00:00:06]} 40. h4 {[%clk 00:00:57]} {[%emt 00:00:03]} f5+ {[%clk
00:26:16]} {[%emt 00:00:07]} 41. gxf5 {[%clk 00:01:00]} {[%emt 00:00:07]} gxf5+
{[%clk 00:26:22]} {[%emt 00:00:05]} 42. Kxf5 {[%clk 00:00:22]} {[%emt
00:00:48]} Kh5 {[%clk 00:26:26]} {[%emt 00:00:05]} 0-1

[Event "NK ABC Kwalificatie 2"]
[Site "Zoetermeer, Netherlands"]
[Date "2025.01.04"]
[Round "2.9"]
[White "Shaikh, Rushaan"]
[Black "Cubuk, Armin"]
[Result "1/2-1/2"]
[TimeControl "55+10"]
[WhiteFideId "9053440"]
[BlackFideId "9004138"]
[WhiteElo "1951"]
[BlackElo "1777"]

1. d4 {[%clk 00:55:18]} {[%emt 00:00:01]} Nf6 {[%clk 00:55:12]} {[%emt
00:00:09]} 2. c4 {[%clk 00:55:21]} {[%emt 00:00:07]} g6 {[%clk 00:55:17]}
{[%emt 00:00:05]} 3. Nc3 {[%clk 00:55:24]} {[%emt 00:00:06]} Bg7 {[%clk
00:55:24]} {[%emt 00:00:04]} 4. e4 {[%clk 00:55:14]} {[%emt 00:00:20]} d6
{[%clk 00:55:30]} {[%emt 00:00:04]} 5. Bf4 {[%clk 00:55:19]} {[%emt 00:00:05]}
O-O {[%clk 00:55:21]} {[%emt 00:00:19]} 6. Nf3 {[%clk 00:55:24]} {[%emt
00:00:05]} Nbd7 {[%clk 00:54:48]} {[%emt 00:00:43]} 7. Be2 {[%clk 00:55:18]}
{[%emt 00:00:16]} Re8 {[%clk 00:52:49]} {[%emt 00:02:09]} 8. O-O {[%clk
00:55:02]} {[%emt 00:00:25]} e5 {[%clk 00:49:35]} {[%emt 00:03:25]} 9. dxe5
{[%clk 00:54:20]} {[%emt 00:00:52]} dxe5 {[%clk 00:48:45]} {[%emt 00:01:00]} 10.
Be3 {[%clk 00:51:24]} {[%emt 00:03:06]} Ng4 {[%clk 00:47:05]} {[%emt 00:01:50]}
11. Qd2 {[%clk 00:49:41]} {[%emt 00:01:53]} Ndf6 {[%clk 00:44:23]} {[%emt
00:02:52]} 12. h3 {[%clk 00:48:05]} {[%emt 00:01:46]} Nxe3 {[%clk 00:39:18]}
{[%emt 00:05:15]} 13. Qxe3 {[%clk 00:48:01]} {[%emt 00:00:14]} c6 {[%clk
00:39:11]} {[%emt 00:00:18]} 14. Rad1 {[%clk 00:46:35]} {[%emt 00:01:35]} Qb6
{[%clk 00:38:43]} {[%emt 00:00:38]} 15. Qxb6 {[%clk 00:45:59]} {[%emt
00:00:47]} axb6 {[%clk 00:38:50]} {[%emt 00:00:02]} 16. a3 {[%clk 00:45:56]}
{[%emt 00:00:13]} Be6 {[%clk 00:35:45]} {[%emt 00:03:15]} 17. Rfe1 {[%clk
00:41:26]} {[%emt 00:04:41]} Nd7 {[%clk 00:35:16]} {[%emt 00:00:38]} 18. Nd2
{[%clk 00:39:50]} {[%emt 00:01:46]} Nc5 {[%clk 00:34:10]} {[%emt 00:01:17]} 19.
b4 {[%clk 00:36:41]} {[%emt 00:03:18]} Na4 {[%clk 00:33:39]} {[%emt 00:00:41]}
20. Nxa4 {[%clk 00:36:20]} {[%emt 00:00:31]} Rxa4 {[%clk 00:33:43]} {[%emt
00:00:07]} 21. Ra1 {[%clk 00:36:18]} {[%emt 00:00:11]} Rea8 {[%clk 00:33:34]}
{[%emt 00:00:19]} 22. Nb1 {[%clk 00:35:31]} {[%emt 00:00:57]} Bf8 {[%clk
00:33:12]} {[%emt 00:00:32]} 23. b5 {[%clk 00:29:13]} {[%emt 00:06:29]} cxb5
{[%clk 00:31:23]} {[%emt 00:01:59]} 24. Nc3 {[%clk 00:29:21]} {[%emt 00:00:02]}
Rxa3 {[%clk 00:29:40]} {[%emt 00:01:52]} 25. Rxa3 {[%clk 00:29:29]} {[%emt
00:00:03]} Rxa3 {[%clk 00:29:49]} {[%emt 00:00:01]} 26. Nxb5 {[%clk 00:29:36]}
{[%emt 00:00:02]} Ra4 {[%clk 00:27:24]} {[%emt 00:02:35]} 27. Rc1 {[%clk
00:29:25]} {[%emt 00:00:21]} Ra2 {[%clk 00:25:24]} {[%emt 00:02:10]} 28. Kf1
{[%clk 00:27:40]} {[%emt 00:01:56]} Bh6 {[%clk 00:24:50]} {[%emt 00:00:44]} 29.
Rb1 {[%clk 00:27:08]} {[%emt 00:00:42]} Bf8 {[%emt 00:02:17]} 1/2-1/2

[Event "NK ABC Kwalificatie 2"]
[Site "Zoetermeer, Netherlands"]
[Date "2025.01.04"]
[Round "3.1"]
[White "Ponomarev, Ivan"]
[Black "Bakija, Alan"]
[Result "0-1"]
[TimeControl "55+10"]
[WhiteFideId "8662115"]
[BlackFideId "8629346"]
[WhiteElo "2005"]
[BlackElo "2247"]

1. c4 {[%clk 00:55:17]} {[%emt 00:00:02]} d6 {[%clk 00:54:43]} {[%emt
00:00:38]} 2. g3 {[%clk 00:55:14]} {[%emt 00:00:13]} e5 {[%clk 00:54:48]}
{[%emt 00:00:05]} 3. Bg2 {[%clk 00:55:20]} {[%emt 00:00:05]} f5 {[%clk
00:54:07]} {[%emt 00:00:50]} 4. Nc3 {[%clk 00:55:00]} {[%emt 00:00:31]} Nf6
{[%clk 00:54:05]} {[%emt 00:00:11]} 5. d3 {[%clk 00:53:36]} {[%emt 00:01:34]}
Be7 {[%clk 00:54:07]} {[%emt 00:00:05]} 6. Nf3 {[%clk 00:53:39]} {[%emt
00:00:10]} O-O {[%clk 00:53:57]} {[%emt 00:00:20]} 7. O-O {[%clk 00:53:43]}
{[%emt 00:00:06]} a5 {[%clk 00:54:04]} {[%emt 00:00:03]} 8. Rb1 {[%clk
00:46:27]} {[%emt 00:07:26]} Qe8 {[%clk 00:50:59]} {[%emt 00:03:15]} 9. a3
{[%clk 00:37:45]} {[%emt 00:08:53]} h6 {[%clk 00:47:49]} {[%emt 00:03:19]} 10.
b4 {[%clk 00:37:30]} {[%emt 00:00:26]} axb4 {[%clk 00:47:54]} {[%emt 00:00:05]}
11. axb4 {[%clk 00:37:38]} {[%emt 00:00:02]} Be6 {[%clk 00:47:09]} {[%emt
00:00:54]} 12. b5 {[%clk 00:34:23]} {[%emt 00:03:25]} Nbd7 {[%clk 00:46:45]}
{[%emt 00:00:33]} 13. Nd2 {[%clk 00:30:50]} {[%emt 00:03:44]} f4 {[%clk
00:41:45]} {[%emt 00:05:09]} 14. Bxb7 {[%clk 00:29:17]} {[%emt 00:01:44]} Bh3
{[%clk 00:41:03]} {[%emt 00:00:52]} 15. Bg2 {[%clk 00:29:10]} {[%emt 00:00:17]}
Qh5 {[%clk 00:40:10]} {[%emt 00:01:03]} 16. Nd5 {[%clk 00:15:48]} {[%emt
00:13:31]} Bxg2 {[%clk 00:33:09]} {[%emt 00:07:11]} 17. Kxg2 {[%clk 00:11:52]}
{[%emt 00:04:07]} Nxd5 {[%clk 00:31:42]} {[%emt 00:01:36]} 18. cxd5 {[%clk
00:11:59]} {[%emt 00:00:03]} Qf7 {[%clk 00:30:48]} {[%emt 00:01:04]} 19. Ne4
{[%clk 00:09:18]} {[%emt 00:02:51]} Qxd5 {[%clk 00:29:44]} {[%emt 00:01:14]} 20.
Qb3 {[%clk 00:09:04]} {[%emt 00:00:25]} Qxb3 {[%clk 00:27:13]} {[%emt
00:02:41]} 21. Rxb3 {[%clk 00:09:13]} {[%emt 00:00:01]} fxg3 {[%clk 00:27:09]}
{[%emt 00:00:13]} 22. hxg3 {[%clk 00:09:06]} {[%emt 00:00:16]} Rfb8 {[%clk
00:26:05]} {[%emt 00:01:14]} 23. Bd2 {[%clk 00:07:59]} {[%emt 00:01:18]} Ra2
{[%clk 00:25:42]} {[%emt 00:00:33]} 24. Rd1 {[%clk 00:06:30]} {[%emt 00:01:39]}
Kf7 {[%clk 00:22:19]} {[%emt 00:03:32]} 25. Kf1 {[%clk 00:05:51]} {[%emt
00:00:50]} Ke6 {[%clk 00:21:45]} {[%emt 00:00:44]} 26. e3 {[%clk 00:05:08]}
{[%emt 00:00:53]} Rc2 {[%clk 00:19:02]} {[%emt 00:02:53]} 27. Ke2 {[%clk
00:04:54]} {[%emt 00:00:24]} Ra8 {[%clk 00:17:46]} {[%emt 00:01:26]} 28. Nc3
{[%clk 00:04:05]} {[%emt 00:00:59]} Nc5 {[%clk 00:17:22]} {[%emt 00:00:34]} 29.
Rb4 {[%clk 00:03:20]} {[%emt 00:00:56]} Ra3 {[%clk 00:16:49]} {[%emt 00:00:41]}
30. d4 {[%clk 00:02:32]} {[%emt 00:00:59]} Raxc3 {[%clk 00:14:02]} {[%emt
00:02:58]} 31. dxc5 {[%clk 00:02:40]} {[%emt 00:00:01]} Rxc5 {[%clk 00:13:59]}
{[%emt 00:00:12]} 32. Kd3 {[%clk 00:02:09]} {[%emt 00:00:41]} Ra2 {[%clk
00:13:24]} {[%emt 00:00:44]} 33. e4 {[%clk 00:01:53]} {[%emt 00:00:26]} Ra3+
{[%clk 00:10:31]} {[%emt 00:03:03]} 34. Ke2 {[%clk 00:01:45]} {[%emt 00:00:18]}
Rc2 {[%clk 00:10:26]} {[%emt 00:00:15]} 35. Rc1 {[%clk 00:01:15]} {[%emt
00:00:41]} Rxc1 {[%clk 00:07:50]} {[%emt 00:02:45]} 36. Bxc1 {[%clk 00:01:24]}
{[%emt 00:00:02]} Ra2+ {[%clk 00:07:49]} {[%emt 00:00:11]} 37. Kf3 {[%clk
00:01:05]} {[%emt 00:00:28]} d5 {[%clk 00:06:49]} {[%emt 00:01:11]} 38. exd5+
{[%clk 00:01:07]} {[%emt 00:00:09]} Kxd5 {[%clk 00:06:53]} {[%emt 00:00:05]} 39.
Rb1 {[%clk 00:00:57]} {[%emt 00:00:21]} e4+ {[%clk 00:05:13]} {[%emt 00:01:50]}
40. Kg4 {[%clk 00:00:26]} {[%emt 00:00:41]} Rxf2 {[%clk 00:04:28]} {[%emt
00:00:54]} 0-1